[Event "58th Akiba Rubinstein GM 2022"]
[Site "Polanica-Zdroj"]
[Date "2022.08.19"]
[Round "7.1"]
[White "Nasuta, Grzegorz"]
[Black "Plat, Vojtech"]
[Result "1-0"]
[ECO "B01"]
[WhiteElo "2500"]
[BlackElo "2556"]
[Annotator "TA"]
[PlyCount "109"]
[EventDate "2022.08.13"]
[EventCountry "POL"]
[SourceTitle "playchess.com"]
[Source "ChessBase"]
[SourceQuality "1"]
[TimeControl "40/5400+30:1800+30"]

{[%evp 10,109,49,30,44,25,47,39,100,85,136,133,141,137,132,142,238,162,170,165,179,178,174,129,198,152,144,176,225,229,229,238,232,225,217,223,223,204,202,204,212,202,210,206,274,256,255,254,338,340,320,337,322,275,491,483,476,471,458,382,370,388,363,343,329,315,304,270,381,374,451,324,401,395,529,519,507,497,545,533,739,746,730,719,700,691,655,630,788,776,783,782,765,760,769,768,747,734,647,625,624,604]} 1. e4 {[%emt 0:00:02]} d5 {[%emt 0:00:10]} 2. exd5 {[%emt 0:00:07]} Qxd5 {[%emt 0:00:04]} 3. Nc3 {[%emt 0:00:29]} Qd6 {[%emt 0:00:05]} 4. d4 {[%emt 0:02:12]} Nf6 {[%emt 0:00:04]} 5. Nf3 {[%emt 0:05:46]} c6 {[%emt 0:00:49]} 6. Ne5 {[%emt 0:10:50]} Nbd7 {[%emt 0:04:06] B01: Scandinavian Defence.} 7. Bf4 {[%emt 0:03:20]} Nxe5 {[%emt 0:01:51]} 8. Bxe5 {[%emt 0:03:14] [#]} Qe6 $146 {[%emt 0:00:57]} ({Better is} 8... Qd8 $14) ({Predecessor:} 8... Qb4 9. Qd2 Bf5 10. O-O-O e6 11. Kb1 Be7 12. f3 O-O 13. g4 Bg6 14. h4 h5 15. gxh5 Bxh5 {1-0 (24) Guseinov,G (2665)-Loiacono,L (2299) Chess.com INT 2020}) 9. Be2 $16 {[%emt 0:01:54][%cal Bf1e2,Be2f3,Bf3d5][%mdl 32]} Nd5 {[%emt 0:09:35]} (9... g6 $142) 10. O-O {[%emt 0:05:05]} f6 {[%emt 0:11:57] [#] White must now prevent ...Nxc3.} 11. Bg3 {[%emt 0:01:45]} g6 {[%emt 0:06:14]} 12. Re1 {[%emt 0:14:14][%cal Oc3b5] And now Nb5! would win.} Bg7 {[%emt 0:04:14]} (12... Nxc3 $16 13. bxc3 Bg7) 13. Nxd5 {[%emt 0:03:16]} Qxd5 {[%emt 0:00:05]} 14. Bf3 {[%emt 0:00:07]} Qd8 {[%emt 0:06:27]} 15. d5 {[%emt 0:03:13]} cxd5 {[%emt 0:00:15]} 16. Bxd5 {[%emt 0:00:07] [#] aiming for Qf3.} (16. Qxd5 Qxd5 17. Bxd5 g5 $16) 16... e5 {[%emt 0:01:49]} (16... e6 $16 17. Qf3 (17. Bxe6 Qxd1 18. Raxd1 Bxe6 $16) 17... O-O 18. Bxe6+ (18. Bxb7 Bxb7 19. Qxb7 e5 $16) 18... Bxe6) 17. f4 {[%emt 0:09:47]} (17. Qf3 $18 {[%cal Oe1e5] Intending Rxe5+! and mate.} Qc7 18. Rad1) 17... Bg4 {[%emt 0:15:07]} 18. Qd3 {[%emt 0:04:47][%cal Rf4e5] White is more active.} Bf5 {[%emt 0:00:08]} (18... Be6 {was called for.}) 19. Qf3 $18 {[%emt 0:02:39][%cal Rf4e5]} Bg4 {[%emt 0:02:29]} 20. Qb3 {[%emt 0:00:31]} ({Don't do} 20. Qxg4 $6 Qxd5 21. fxe5 O-O $16) 20... Qb6+ {[%emt 0:00:03]} 21. Qxb6 {[%emt 0:00:40]} axb6 {[%emt 0:00:03]} 22. Bxb7 {[%emt 0:00:45]} Ra7 {[%emt 0:00:02]} 23. Bc6+ {[%emt 0:00:12]} Ke7 {[%emt 0:00:04]} 24. fxe5 {[%emt 0:04:57]} fxe5 {[%emt 0:00:05]} 25. Bb5 {[%emt 0:05:58]} (25. Bxe5 Bxe5 26. Rxe5+ Kd6) 25... Rc8 {[%emt 0:00:48]} 26. c4 {[%emt 0:01:03]} ({Don't play} 26. Bxe5 Bxe5 27. Rxe5+ Kf6) 26... Ke6 {[%emt 0:02:00]} 27. Bf2 {[%emt 0:07:04]} Rb8 {[%emt 0:00:04]} 28. a4 {[%emt 0:00:06]} Kf7 {[%emt 0:01:37]} 29. c5 {[%emt 0:01:40]} bxc5 {[%emt 0:00:20]} 30. Bxc5 {[%emt 0:00:06]} Rab7 {[%emt 0:00:34]} 31. Bd6 {[%emt 0:02:30][%csl LRb8,LRe5]} Rxb5 {[%emt 0:00:03]} (31... Rd8) 32. axb5 {[%emt 0:00:06]} Rxb5 {[%emt 0:00:03]} 33. Ra7+ {[%emt 0:01:37]} Ke6 {[%emt 0:00:16]} 34. Rxg7 {[%emt 0:00:08]} Kxd6 {[%emt 0:00:03]} 35. Rxh7 {[%emt 0:00:17]} Rxb2 {[%emt 0:00:46][%mdl 4096] Endgame KRR-KRB} 36. Ra7 {[%emt 0:00:57]} Bc8 {[%emt 0:01:28]} 37. Ra3 {[%emt 0:01:34]} Rb5 {[%emt 0:02:09]} 38. Kf2 {[%emt 0:01:52]} Bf5 {[%emt 0:00:51]} (38... Ke7 $142 39. Ree3 Rb2+ 40. Re2 Rb5) 39. h3 {[%emt 0:01:18]} Rc5 {[%emt 0:01:49]} 40. Re2 {[%emt 0:00:00]} Ke7 {[%emt 0:00:00]} 41. Rb2 {[%emt 0:07:27]} Kf6 {[%emt 0:01:38]} 42. Rb6+ {[%emt 0:00:27] White is clearly winning.} Kg5 {[%emt 0:00:41]} 43. g4 {[%emt 0:05:17]} Be4 {[%emt 0:00:08]} 44. Kg3 {[%emt 0:00:06] White wants to mate with h4+.} Rc1 {[%emt 0:00:04]} 45. Re3 {[%emt 0:03:41]} Rg1+ {[%emt 0:00:19]} 46. Kf2 {[%emt 0:00:09]} Rg2+ {[%emt 0:00:02]} 47. Kf1 {[%emt 0:00:05]} Ba8 {[%emt 0:00:02]} 48. Rxe5+ {[%emt 0:02:06]} Kf4 {[%emt 0:00:03]} 49. Ra5 {[%emt 0:06:52]} Be4 50. Rf6+ {[%emt 0:02:47]} Kg3 {[%emt 0:00:23]} 51. Ra3+ {[%emt 0:00:03]} Kh4 {[%emt 0:00:16]} 52. Re6 {[%emt 0:01:16]} Bb7 {[%emt 0:00:56]} 53. Rxg6 {[%emt 0:00:28] Threatens to win with Rb6.} Rb2 {[%emt 0:00:14] Prevents Rb6.} 54. Rh6+ {[%emt 0:00:13]} Kg5 {[%emt 0:00:03]} 55. Rh5+ {[%emt 0:00:04] Weighted Error Value: White=0.14 (very precise) /Black=0.33} 1-0

[Event "58th Akiba Rubinstein GM 2022"]
[Site "Polanica-Zdroj"]
[Date "2022.08.19"]
[Round "7.2"]
[White "Mastrovasilis, Dimitrios"]
[Black "Kempinski, Robert"]
[Result "1/2-1/2"]
[ECO "B84"]
[WhiteElo "2597"]
[BlackElo "2558"]
[Annotator "TA"]
[PlyCount "69"]
[EventDate "2022.08.13"]
[EventCountry "POL"]
[SourceTitle "playchess.com"]
[Source "ChessBase"]
[SourceQuality "1"]
[TimeControl "40/5400+30:1800+30"]

{[%evp 14,69,25,21,55,47,50,55,42,43,83,63,45,41,78,83,234,226,306,308,302,177,185,185,185,185,186,183,180,178,172,177,172,176,152,58,47,35,27,40,47,0,0,0,0,0,0,0,0,0,0,0,0,0,0,0,0,0]} 1. e4 {[%emt 0:02:24]} c5 {[%emt 0:00:10]} 2. Nf3 {[%emt 0:00:17]} d6 {[%emt 0:00:12]} 3. d4 {[%emt 0:00:15]} cxd4 {[%emt 0:00:13]} 4. Nxd4 {[%emt 0:00:07]} Nf6 {[%emt 0:00:10][%cal Bg8f6,Bf6d7,Bd7b6][%mdl 32]} 5. Nc3 {[%emt 0:00:12]} a6 {[%emt 0:00:11]} 6. Be2 {[%emt 0:00:19]} e6 {[%emt 0:01:02]} 7. Be3 {[%emt 0:00:20]} Be7 {[%emt 0:03:49]} 8. g4 {[%emt 0:00:57]} Nfd7 {[%emt 0:03:44] B84: Sicilian Scheveningen: 6 Be2 a6, lines without early Be3.} 9. Qd2 {[%emt 0:02:37][%cal Oh2h4]} b5 {[%emt 0:03:27]} 10. a3 {[%emt 0:00:27]} Bb7 {[%emt 0:07:06] White is slightly better.} 11. g5 {[%emt 0:04:50]} Nb6 {[%emt 0:06:52] [#]} 12. O-O-O $146 {[%emt 0:18:57]} ({Predecessor:} 12. h4 N8d7 13. h5 Rc8 14. O-O-O Ne5 15. g6 Nbc4 16. Bxc4 Nxc4 17. Qe2 Bf6 18. f4 {0-1 (29) Kaasen,T (2406)-Ftacnik,L (2513) Reykjavik 2021}) 12... N8d7 {[%emt 0:03:09]} 13. f4 {[%emt 0:09:38][%cal Bf2f4,Bf4f5,Bf5e6,Be6f7][%mdl 32] Strongly threatening f5.} Nc5 {[%emt 0:03:35]} 14. f5 $1 {[%emt 0:01:24]} Qc8 $2 {[%emt 0:06:37]} (14... Nxe4 $16 {was called for.} 15. Nxe4 Bxe4) 15. Rhf1 $18 {[%emt 0:10:53]} Nc4 {[%emt 0:17:10]} 16. Bxc4 {[%emt 0:01:12]} bxc4 {[%emt 0:00:04]} 17. Qf2 {[%emt 0:10:29]} (17. fxe6 $142 fxe6 18. Qf2) 17... Nxe4 {[%emt 0:12:06]} 18. Nxe4 {[%emt 0:00:17]} Bxe4 {[%emt 0:00:08]} 19. fxe6 {[%emt 0:00:13]} O-O {[%emt 0:00:46]} 20. exf7+ {[%emt 0:05:14]} Kh8 {[%emt 0:00:14]} 21. Bd2 {[%emt 0:03:56] aiming for h4.} c3 {[%emt 0:09:19]} 22. Bxc3 {[%emt 0:00:10]} Bxg5+ {[%emt 0:00:07]} 23. Kb1 {[%emt 0:00:13]} Bf6 {[%emt 0:00:37] [#]} 24. Qe2 {[%emt 0:10:31]} (24. Qe3 $1 $16 Bg6 {[#]} 25. Nc6 $1 {[%mdl 512]} Bxc3 26. Qxc3) 24... d5 $14 {[%emt 0:05:57] [#]} 25. Nb5 $1 {[%emt 0:03:54]} axb5 {[%emt 0:01:33]} 26. Rxf6 {[%emt 0:01:15]} Rxa3 $1 {[%emt 0:00:19]} 27. Rf4 {[%emt 0:04:30] Active counter play!} (27. Rf2 $14 {should be considered.} Ra7 28. Qh5) 27... Rxc3 $11 {[%emt 0:03:48] The position is equal.} 28. bxc3 {[%emt 0:00:05] Really sharp!} Qxc3 {[%emt 0:00:18]} 29. Rxe4 {[%emt 0:00:10]} dxe4 {[%emt 0:00:07]} 30. Qxe4 {[%emt 0:00:30][%cal Od1d8] White threatens Rd8! and mate. KQR-KQR} g6 {[%emt 0:01:33]} (30... Qf6 31. Qe8 h6 32. Qxf8+ Kh7 33. Rg1) 31. Rd3 {[%emt 0:03:53]} Qf6 {[%emt 0:02:08]} 32. Rf3 {[%emt 0:00:17]} Qd6 {[%emt 0:00:12]} 33. Rd3 {[%emt 0:01:04]} Qf6 {[%emt 0:00:07]} 34. Rf3 {[%emt 0:00:25]} Qd6 {[%emt 0:00:07]} 35. Rd3 {[%emt 0:05:24] Black escapes into a draw.  Weighted Error Value: White=0.13 (very precise) /Black=0.11 (very precise)} 1/2-1/2

[Event "58th Akiba Rubinstein GM 2022"]
[Site "Polanica-Zdroj"]
[Date "2022.08.19"]
[Round "7.3"]
[White "Tomczak, Jacek"]
[Black "Teclaf, Pawel"]
[Result "1/2-1/2"]
[ECO "E21"]
[WhiteElo "2596"]
[BlackElo "2550"]
[Annotator "TA"]
[PlyCount "52"]
[EventDate "2022.08.13"]
[EventCountry "POL"]
[SourceTitle "playchess.com"]
[Source "ChessBase"]
[SourceQuality "1"]
[TimeControl "40/5400+30:1800+30"]

{[%evp 19,52,-31,-19,-52,-47,-47,-52,-56,-56,-57,-42,-81,0,0,0,0,0,7,0,-8,-8,-20,-13,-2,-8,-14,-20,-10,0,0,0,-10,0,0,0]} 1. d4 {[%emt 0:00:03]} Nf6 {[%emt 0:00:24]} 2. c4 {[%emt 0:00:11]} e6 {[%emt 0:00:04]} 3. Nc3 {[%emt 0:00:13]} Bb4 {[%emt 0:00:04]} 4. Nf3 {[%emt 0:00:14]} Bxc3+ {[%emt 0:04:54]} 5. bxc3 {[%emt 0:00:07]} d6 {[%emt 0:00:02]} 6. Qc2 {[%emt 0:03:41]} Qe7 {[%emt 0:10:41]} 7. Bg5 {[%emt 0:06:04][%cal Bc1g5,Bg5h4,Bh4g3,Bg3h2][%mdl 32]} h6 {[%emt 0:00:58]} 8. Bh4 {[%emt 0:00:39]} b6 {[%emt 0:07:17]} 9. e3 {[%emt 0:25:59]} Bb7 {[%emt 0:02:52]} 10. Bd3 {[%emt 0:14:53]} Nbd7 {[%emt 0:04:38]} (10... g5 $5 11. Bg3 h5 $11) 11. h3 {[%emt 0:08:39] E13: Queen's Indian/Nimzo-Indian hybrid: 4 Nc3 Bb7 5 Bg5 h6 6 Bh4 Bb4.} O-O-O {[%emt 0:05:42]} (11... g5 $5 12. Bg3 e5 $11) 12. O-O-O {[%emt 0:05:11] [#]} g5 $146 {[%emt 0:03:37]} ({Predecessor:} 12... Kb8 13. e4 e5 14. Rhe1 g5 15. Bg3 Nh5 16. Bh2 Nf4 17. Bf1 Qf6 18. Re3 Rhe8 {0-1 (57) Baikov,V (2345)-Laketic,G (2480) Moscow 1992}) 13. Bg3 {[%emt 0:00:05] Black is slightly better.} Nh5 {[%emt 0:04:19]} 14. Be4 {[%emt 0:07:22]} d5 {[%emt 0:09:18]} 15. cxd5 {[%emt 0:00:14]} Ndf6 {[%emt 0:00:14]} ({Much weaker is} 15... exd5 16. Bf5 $11) (15... Nxg3 $17 16. fxg3 Nf6) 16. d6 $1 $11 {[%emt 0:02:53] The position is equal.} cxd6 {[%emt 0:00:08]} 17. Bxb7+ {[%emt 0:00:04]} Qxb7 {[%emt 0:05:56]} 18. Bh2 {[%emt 0:00:04]} Ne4 {[%emt 0:07:31]} 19. d5 {[%emt 0:03:22]} exd5 {[%emt 0:02:16]} 20. Nd4 {[%emt 0:00:54] [#] Hoping for f3.} Kb8 $1 {[%emt 0:07:06]} 21. Kb2 {[%emt 0:00:23]} Rc8 {[%emt 0:02:31]} 22. Rd3 {[%emt 0:12:43]} Qd7 {[%emt 0:04:30] Against Nf5} 23. Ka1 {[%emt 0:01:26]} Nc5 {[%emt 0:05:14]} 24. Rdd1 {[%emt 0:01:40]} Ne4 {[%emt 0:05:58]} 25. Rd3 {[%emt 0:00:03]} Nc5 {[%emt 0:02:36]} 26. Rdd1 {[%emt 0:00:03]} Ne4 {[%emt 0:01:06] Weighted Error Value: White=0.05 (flawless) /Black=0.08 (flawless)} 1/2-1/2

[Event "58th Akiba Rubinstein GM 2022"]
[Site "Polanica-Zdroj"]
[Date "2022.08.19"]
[Round "7.4"]
[White "Sumets, Andrey"]
[Black "Tazbir, Marcin"]
[Result "0-1"]
[ECO "D20"]
[WhiteElo "2547"]
[BlackElo "2511"]
[Annotator "TA"]
[PlyCount "156"]
[EventDate "2022.08.13"]
[EventCountry "POL"]
[SourceTitle "playchess.com"]
[Source "ChessBase"]
[SourceQuality "1"]
[TimeControl "40/5400+30:1800+30"]

{[%evp 14,156,2,17,19,10,19,16,28,35,22,41,27,29,31,29,30,23,31,20,44,28,30,37,38,41,47,12,55,59,85,71,92,123,118,76,61,71,70,74,100,35,75,56,278,0,123,0,0,0,0,0,0,72,117,0,0,0,282,267,267,267,255,246,230,0,0,0,0,-8,0,-65,-68,-114,-106,-201,-201,-159,-176,-159,-172,-325,-325,-4644,-4631,-1100,895,-12845,-12847,-12842,-12843,-1434,0,-855,0,-352,-63,-63,-63,-63,-47,-56,-31,-82,-63,-74,-8,-8,-8,-39,-41,-29956,-29957,-29956,-29957,-29957,-29959,-29954,-29955,-29975,-29974,-29975,-29975,-29975,-29974,-29974,0,-29975,-29976,-29977,-29976,-29979,-29980,-29980,-29980,-29981,-29979,-29979,0,-29981,-29982,-29983,-29984,-29984,-29985]} 1. d4 {[%emt 0:02:29]} d5 {[%emt 0:00:16]} 2. c4 {[%emt 0:00:12]} dxc4 {[%emt 0:00:04]} 3. e3 {[%emt 0:00:10]} Nf6 {[%emt 0:00:05]} 4. Bxc4 {[%emt 0:00:04]} e6 {[%emt 0:00:07]} 5. Nf3 {[%emt 0:00:06]} a6 {[%emt 0:00:03]} 6. O-O {[%emt 0:00:22]} c5 {[%emt 0:00:06]} 7. Bd3 {[%emt 0:03:29]} Nbd7 {[%emt 0:01:59]} 8. Qe2 {[%emt 0:06:48]} Be7 {[%emt 0:01:31] D27: Queen's Gambit Accepted: Classical main line: 7 e4!? and 7 a4.} 9. Rd1 {[%emt 0:06:18]} Qc7 {[%emt 0:01:23]} 10. Nbd2 {[%emt 0:05:29] [#]} b6 $146 {[%emt 0:06:24] The position is equal.} ({Predecessor:} 10... O-O 11. Nb3 b5 12. dxc5 Nxc5 13. Nxc5 Bxc5 14. Bd2 Bb7 15. Rac1 Qe7 16. e4 e5 {0-1 (45) Michenka,J (2344)-Jurcik,M (2341) Frydek Mistek 2007}) 11. b3 {[%emt 0:07:32]} cxd4 {[%emt 0:03:31]} 12. Nxd4 {[%emt 0:00:12]} Nc5 {[%emt 0:01:16]} 13. Bc2 {[%emt 0:01:31]} Bb7 {[%emt 0:00:16]} 14. Bb2 {[%emt 0:00:20]} Rc8 {[%emt 0:01:04]} 15. Rac1 {[%emt 0:00:20] b4 is the strong threat.} Qb8 $1 {[%emt 0:00:48]} 16. Nc4 {[%emt 0:05:32]} Ncd7 {[%emt 0:05:32]} 17. Nf3 {[%emt 0:12:53]} b5 {[%emt 0:05:46]} 18. Nce5 {[%emt 0:00:14]} Nxe5 {[%emt 0:06:17]} 19. Nxe5 {[%emt 0:00:39]} Bd6 {[%emt 0:06:33]} 20. f4 {[%emt 0:03:43]} Bc5 {[%emt 0:02:52]} 21. Kh1 {[%emt 0:11:23]} Ke7 {[%emt 0:12:28]} 22. Qe1 {[%emt 0:12:55]} Rhd8 {[%emt 0:06:37]} 23. Qg3 {[%emt 0:05:49]} Kf8 {[%emt 0:02:25] [#]} 24. Bxh7 $1 {[%emt 0:01:52][%cal Oe5f7][%mdl 512]} Rxd1+ {[%emt 0:09:21]} 25. Rxd1 {[%emt 0:00:05]} Rd8 {[%emt 0:00:10]} 26. Bd3 {[%emt 0:00:50][%cal Oe5f7]} Ne4 {[%emt 0:03:49]} 27. Qe1 {[%emt 0:00:28]} (27. Qf3 $1 $16 {[%cal Rf3h5] Threatens to win with Qh5.} Kg8 28. Rc1) 27... Qd6 {[%emt 0:01:51]} 28. h3 {[%emt 0:02:03][%cal Ob2d4]} f6 $2 {[%emt 0:01:38] [#]} (28... Kg8 $14) 29. Nf3 $2 {[%emt 0:05:00]} (29. Qh4 $1 $18 {[%cal Rh4h8] Intending Qh8+ and mate.} Kg8 (29... fxe5 30. Bxe5) 30. Bd4) 29... g5 {[%emt 0:00:09]} (29... Qxd3 $11 {remains equal.} 30. Rxd3 Rxd3) 30. Bd4 {[%emt 0:01:02]} (30. Bxe4 $6 Qxd1 31. Bxb7 Qxe1+ 32. Nxe1 Rd1 $11) (30. Kh2 $16 {[%cal Od3e4] Black must now prevent Bxe4!} Qc7 31. Bd4 Bxd4 32. Nxd4 Rxd4 33. exd4) 30... Bb4 $11 {[%emt 0:00:06]} 31. Qg1 {[%emt 0:00:39]} Kf7 {[%emt 0:06:04]} 32. Bxe4 {[%emt 0:01:23]} ({Better is} 32. Bxf6 $11 Kxf6 33. Bxe4 Qxd1 34. fxg5+ Kg7 35. Bxb7) 32... Bxe4 $16 {[%emt 0:00:07]} 33. fxg5 {[%emt 0:01:52]} e5 {[%emt 0:00:40] [#]} 34. Qf2 {[%emt 0:00:37]} Bc3 $1 $11 {[%emt 0:07:18][%mdl 64] Pin. A strong pair of Bishops.} (34... exd4 $2 35. Rxd4 Bd5 36. gxf6 $18 (36. e4 Bc5 $16)) 35. gxf6 {[%emt 0:00:48] And now Ng5+ would win.} (35. Bxc3 {seems wilder.} Qxd1+ 36. Ne1 Qd6 37. Kh2) 35... Bxf3 {[%emt 0:00:26][%mdl 8192]} (35... exd4 $11 {and Black stays safe.} 36. Ng5+ Kg6) 36. Qxf3 $18 {[%emt 0:00:03]} exd4 {[%emt 0:00:16]} 37. exd4 {[%emt 0:00:27]} Bxd4 {[%emt 0:01:04]} 38. Qh5+ {[%emt 0:00:29]} Ke6 {[%emt 0:00:08]} 39. f7 $2 {[%emt 0:01:05]} (39. Qh7 $1 $18) 39... Qf4 $1 $11 {[%emt 0:01:19][%cal Od4e5] Hoping for ...Be5!} 40. Qg6+ {[%emt 0:00:00][%mdl 64] Skewer} Ke7 {[%emt 0:00:00] Dancing on a razor blade.} 41. Qd3 $132 {[%emt 0:05:09][%mdl 2048] White has counterplay} (41. Qxa6 Be5 42. Qa7+ Ke6 43. f8=N+ (43. Re1 $2 Qh2#) 43... Rxf8 44. Qb6+ (44. Re1 $2 Qh2#) 44... Bd6 $17) 41... Kf8 {[%emt 0:08:14]} (41... Kxf7 $2 42. Rf1 Qxf1+ 43. Qxf1+ $18) 42. Rf1 {[%emt 0:00:40]} ({White should play} 42. Qh7 $11) 42... Qg5 $15 {[%emt 0:01:08] aiming for ...Be5.} 43. Qe4 {[%emt 0:04:54]} (43. Qc2 $15 {feels stronger.}) 43... Be5 $1 $17 {[%emt 0:06:12]} 44. Qc6 {[%emt 0:04:48]} (44. Qb4+ $17 {was necessary.} Bd6 45. Qa5) 44... Bd6 $1 $19 {[%emt 0:06:40]} 45. Qb6 {[%emt 0:02:43]} b4 $1 {[%emt 0:03:04]} 46. Rd1 {[%emt 0:02:36]} Kxf7 {[%emt 0:01:51][%cal Og5g3]} 47. Qxa6 $2 {[%emt 0:01:59] [#]} ({Avoid the trap} 47. Rxd6 $2 Qc1+ 48. Kh2 Qf4+ 49. g3 Qxd6 $19) (47. Qb7+ {is a better defense.} Kg8 48. Qd5+ Qxd5 49. Rxd5) 47... Qg3 $1 {[%emt 0:02:07][%csl Gd6][%cal Rg3h2]} 48. Qa7+ $2 {[%emt 0:00:40]} (48. Qc4+ Kg7 49. Qg4+ Qxg4 50. hxg4) 48... Kg6 {[%emt 0:01:27][%csl Gd6][%cal Rg3h2]} 49. Qg1 {[%emt 0:00:44] Prevents Qh2+.} Bc5 $4 {[%emt 0:01:15][%mdl 8192] [#]} 50. Qf1 $4 {[%emt 0:00:25][%mdl 8192]} (50. Rxd8 $1 $18 Bxg1 51. Rg8+ Kf6 52. Rxg3) 50... Rxd1 {[%emt 0:00:55]} 51. Qxd1 {[%emt 0:00:20]} Bd6 {[%emt 0:00:07][%csl Gd6][%cal Rg3h2]} 52. Kg1 {[%emt 0:00:34]} Bc5+ {[%emt 0:00:08]} ({And not} 52... Qh2+ 53. Kf2 $17) 53. Kh1 {[%emt 0:00:05] Strongly threatening Qc2+.} Bd6 {[%emt 0:00:03]} (53... Qe3 $142 54. Qg4+ Kh6) 54. Kg1 $1 {[%emt 0:00:04]} Kf6 $2 {[%emt 0:00:19]} ({Stronger than} 54... Qh2+ 55. Kf2 $17) (54... Qf4 $19 55. Qd3+ Kh6) 55. Qd4+ {[%emt 0:04:55]} Qe5 {[%emt 0:03:20]} 56. Qd2 {[%emt 0:02:49]} Ke6 {[%emt 0:02:57]} 57. Kf2 {[%emt 0:02:30]} Bc5+ {[%emt 0:00:51]} 58. Kf1 {[%emt 0:00:30]} (58. Kf3 $1 $15) 58... Qf5+ {[%emt 0:00:43]} 59. Ke1 {[%emt 0:01:05]} Ke5 {[%emt 0:01:08] Black is more active.} (59... Kf6 $17 60. Qb2+ Kg5 61. Qd2+ Kh4) 60. Qe2+ $11 {[%emt 0:03:43]} Kd5 {[%emt 0:03:15]} 61. Qc4+ {[%emt 0:00:34]} Kd6 {( -> ...Qf2+)} 62. Ke2 $2 {[%emt 0:01:51][%mdl 8192]} (62. Qa6+ $15 Kc7 63. g4 Qb1+ 64. Kd2) 62... Qf2+ {[%emt 0:00:36]} 63. Kd3 {[%emt 0:00:19]} Qf1+ {[%emt 0:00:16]} 64. Kc2 {[%emt 0:00:04]} Qxg2+ {[%emt 0:00:06]} 65. Kb1 {[%emt 0:00:03]} Qxh3 {[%emt 0:00:43]} 66. a4 {[%emt 0:01:17]} Qf5+ {[%emt 0:02:22]} 67. Ka2 {[%emt 0:00:16]} Qf2+ {[%emt 0:00:05]} 68. Kb1 {[%emt 0:00:06]} Qe1+ {[%emt 0:00:38]} 69. Kc2 {[%emt 0:00:06]} Qf2+ {[%emt 0:00:06]} 70. Kb1 {[%emt 0:00:04]} Ke5 {[%emt 0:00:14]} 71. Qb5 {[%emt 0:00:30]} Qe1+ {[%emt 0:00:18]} 72. Kb2 {[%emt 0:00:27]} Qc3+ {[%emt 0:00:12]} 73. Ka2 {[%emt 0:00:06]} Qc2+ {[%emt 0:00:13]} 74. Ka1 {[%emt 0:00:04]} Qc1+ {[%emt 0:00:28]} 75. Ka2 {[%emt 0:00:07]} Qc2+ {[%emt 0:01:18]} 76. Ka1 {[%emt 0:00:07]} Kd4 {[%emt 0:00:24] Black mates.} 77. Qd7+ {[%emt 0:01:07]} Kc3 {[%emt 0:00:11][%csl Gc3][%cal Rc2b2]} 78. Qh3+ {[%emt 0:00:06]} Qd3 {[%emt 0:00:19] What a fight!  Weighted Error Value: White=0.55/Black=0.43} 0-1

[Event "58th Akiba Rubinstein GM 2022"]
[Site "Polanica-Zdroj"]
[Date "2022.08.19"]
[Round "7.5"]
[White "Donchenko, Alexander"]
[Black "Bernadskiy, Vitaliy"]
[Result "1/2-1/2"]
[ECO "E94"]
[WhiteElo "2630"]
[BlackElo "2598"]
[Annotator "TA"]
[PlyCount "71"]
[EventDate "2022.08.13"]
[EventCountry "POL"]
[SourceTitle "playchess.com"]
[Source "ChessBase"]
[SourceQuality "1"]
[TimeControl "40/5400+30:1800+30"]

{[%evp 16,71,48,47,41,39,45,43,39,49,62,47,61,45,48,36,57,34,37,19,60,37,58,51,74,71,96,58,98,-5,0,-20,-31,-22,-27,-29,-13,-19,-14,-9,-3,-52,0,-16,-16,-16,0,0,0,0,0,0,0,0,0,0,0,0]} 1. d4 {[%emt 0:00:02]} Nf6 {[%emt 0:00:15]} 2. c4 {[%emt 0:00:13]} d6 {[%emt 0:00:03]} 3. Nf3 {[%emt 0:01:07]} Nbd7 {[%emt 0:00:43]} 4. Nc3 {[%emt 0:01:06]} g6 {[%emt 0:00:43]} 5. e4 {[%emt 0:01:52]} e5 {[%emt 0:00:13]} 6. Be2 {[%emt 0:00:43]} Bg7 {[%emt 0:00:15]} 7. O-O {[%emt 0:00:18]} O-O {[%emt 0:00:06]} 8. Be3 {[%emt 0:00:42]} Qe7 {[%emt 0:05:15]} 9. Qc2 {[%emt 0:03:01]} exd4 {[%emt 0:02:34] E94: King's Indian: Classical: 6 Be2 e5 7 0-0: Various Black 7th moves.} 10. Nxd4 {[%emt 0:00:15]} c6 {[%emt 0:00:06]} 11. Rad1 {[%emt 0:15:34]} Nc5 {[%emt 0:07:22] White is slightly better. is the legacy move (11...Re8).} 12. f3 {[%emt 0:01:33]} a5 {[%emt 0:00:56]} 13. Rfe1 {[%emt 0:12:28] White is more active.} a4 {[%emt 0:02:21] [#]} 14. Bf1 $146 {[%emt 0:01:16]} ({Predecessor:} 14. Qd2 Nfd7 15. Bf1 Re8 16. Bh6 Bf6 17. Nc2 Be5 18. Bg5 Qf8 19. Bh6 Qe7 20. Be3 {½-½ (30) Saric,A (2549)-Popovic,D (2528) Mali Losinj 2017}) 14... Qc7 {[%emt 0:03:27]} 15. Kh1 {[%emt 0:07:34]} Qa5 {[%emt 0:02:25]} 16. Nde2 {[%emt 0:03:13][%cal Bd4e2,Be2c1,Bc1d3][%mdl 32]} Ne8 {[%emt 0:04:32][%cal Bf6e8,Be8c7,Bc7b5,Bb5d4][%mdl 32]} 17. Bd4 {[%emt 0:02:34]} Bh6 {[%emt 0:01:52]} 18. Nc1 {[%emt 0:04:03]} Ne6 {[%emt 0:02:20]} 19. Be3 {[%emt 0:00:50]} Bg7 {[%emt 0:00:40]} 20. Nd3 {[%emt 0:01:12]} N8c7 {[%emt 0:01:24]} 21. Qd2 {[%emt 0:01:51]} Re8 {[%emt 0:10:26]} 22. Ne2 {[%emt 0:02:49]} (22. Qf2 $16) 22... Qxd2 {[%emt 0:07:36]} 23. Bxd2 {[%emt 0:03:04]} b5 {[%emt 0:01:34]} 24. cxb5 {[%emt 0:08:11]} Nxb5 {[%emt 0:00:13]} 25. Rc1 Ned4 {[%emt 0:04:37]} 26. Nxd4 {[%emt 0:01:07]} Nxd4 {[%emt 0:00:21]} 27. Bf4 {[%emt 0:06:22]} Be6 {[%emt 0:06:36]} 28. a3 {[%emt 0:01:27]} (28. Bxd6 $11 Bxa2 29. f4) 28... d5 {[%emt 0:06:59]} (28... Rad8 $15) 29. Be5 {[%emt 0:05:56] The position is equal.} dxe4 {[%emt 0:04:01]} 30. fxe4 {[%emt 0:02:39]} Bb3 {[%emt 0:03:21]} 31. Bxg7 {[%emt 0:00:52]} Kxg7 {[%emt 0:00:03]} 32. Kg1 {[%emt 0:02:23]} Nc2 {[%emt 0:02:39]} 33. Re2 {[%emt 0:00:08]} Nd4 {[%emt 0:00:03]} 34. Ree1 {[%emt 0:00:05]} Nc2 {[%emt 0:00:03]} 35. Re2 {[%emt 0:00:13]} Nd4 {[%emt 0:00:05]} 36. Ree1 {[%emt 0:00:05] Weighted Error Value: White=0.17 (very precise) /Black=0.12 (very precise)} 1/2-1/2